Cogmind - Beta 16.1 @@@ ROGUE MODE // 2026.02.15 @ 13:44:30 Player: eVander Result: Destroyed by G-34 Mercenary with Small Laser Performance ------------- Evolutions (1) 500 Regions Visited (3) 600 Robots Destroyed (22) 110 Value Destroyed (588) 588 Prototype IDs (0) 0 Alien Tech Used (0) 0 Bonus (0) 0 TOTAL SCORE: 1798 Bonus ------- None Cogmind --------- Core Integrity 0/400 Matter 300/300 Energy 96/100 System Corruption 1% Temperature Cool (40) Movement Walking (120) Location -9/Storage Parts ------- > --- POWER (1) -------- (None) > --- PROPULSION (3) --- Aluminum Leg Improved Aluminum Leg > --- UTILITY (3) ------ Small Storage Unit Signal Interpreter > --- WEAPON (2) ------- Small Laser > --- INVENTORY (8) ---- Improved Ion Engine Grenade Launcher Peak State ------------ > --- POWER ------------ Improved Ion Engine > --- PROPULSION ------- Aluminum Leg Improved Aluminum Leg > --- UTILITY ---------- Small Storage Unit Signal Interpreter Drone Bay > --- WEAPON ----------- Small Laser Small Laser > --- INVENTORY -------- Improved Ion Engine [Rating: 14] Favorites ----------- Power Ion Engine Engine Ion Engine Propulsion Light Treads Treads Light Treads Leg Aluminum Leg Utility Small Storage Unit Device Drone Bay Storage Small Storage Unit Processor Signal Interpreter Weapon Small Laser Energy Gun Small Laser Build | -11 -10 -9 -9 ------- Run | Yrd Mat Mat Sto Slots Evolved 2 | . . 2 . Power . | . . . . Propulsion 1 | . . 1 . Utility 1 | . . 1 . Weapon . | . . . . Parts Attached 19 | 6 1 5 7 Power 3 | 1 . 1 1 Engine 3 | 1 . 1 1 Core . | . . . . Reactor . | . . . . Propulsion 7 | 2 . 2 3 Treads 2 | 2 . . . Leg 5 | . . 2 3 Wheel . | . . . . Hover . | . . . . Flight . | . . . . Utility 4 | 1 1 1 1 Device 2 | . 1 . 1 Storage 1 | 1 . . . Processor 1 | . . 1 . Hackware . | . . . . Protection . | . . . . Artifact . | . . . . Weapon 5 | 2 . 1 2 Energy Gun 5 | 2 . 1 2 Energy Cannon . | . . . . Ballistic Gun . | . . . . Ballistic Cannon . | . . . . Launcher . | . . . . Special Weapon . | . . . . Impact Weapon . | . . . . Slashing Weapon . | . . . . Piercing Weapon . | . . . . Special Melee Weapon . | . . . . Unidentified Prototypes . | . . . . Parts Lost 12 | . . 5 7 Power 2 | . . 1 1 Propulsion 4 | . . 1 3 Utility 2 | . . 1 1 Weapon 4 | . . 2 2 Highest Loss Streak 4 | . . 4 3 To Critical Strikes 1 | . . 1 . Average Backups 2 | 1 3 3 . Power . | . 1 . . Propulsion . | . 2 1 . Utility . | . . . . Weapon . | . . . . Tool/Special . | . . . . Unused Backups 4 | 1 . . 3 Power 1 | . . . 1 Propulsion 2 | 1 . . 1 Utility . | . . . . Weapon 1 | . . . 1 Tool/Special . | . . . . Average Slot Usage (%) 79 | . 92 82 73 Engine 11 | . 14 10 10 Treads 12 | . 28 12 5 Leg 11 | . . 14 15 Device 5 | . 6 4 5 Storage 11 | . 14 11 11 Processor 8 | . . 10 11 Energy Gun 18 | . 28 19 14 Peak Build Rating 14 | 6 7 9 14 Average Rating 8 | 4 6 7 9 On Entrance 4 | . 6 7 5 Avg Prop Armor Cover (%) 14 | . . 10 22 Naked Turns . | . . . . Heaviest Build 20 | 13 14 14 20 Greatest Support 40 | 40 40 40 23 Greatest Overweight (x) 3 | . . 2 3 Average Overweight (x) . | . . . . Largest Inventory Capacity 8 | 8 8 8 8 Average Capacity 7 | 7 8 8 8 Most Carried 7 | 5 5 7 2 Average Carried 2 | 1 3 3 . Final Capacity 8 | 8 8 8 8 Final Carried 4 | 3 4 3 2 Class Distribution -------------------- 100% | Mutant Dominant Class ---------------- Mutant | -10/Materials Mutant | -9/Materials Mutant | -9/Storage Resources | -11 -10 -9 -9 ----------- Run | Yrd Mat Mat Sto Matter Collected 437 | 179 91 73 94 Remotely . | . . . . Salvage Created 760 | . 129 265 366 Parts 45 | . 6 18 21 Haulers Intercepted . | . . . . Recyclers Shooed . | . . . . Parts Field Recycled . | . . . . Retrieved Matter . | . . . . Parts Self-Destructed . | . . . . Prevented . | . . . . Parts Restored . | . . . . Kills | -11 -10 -9 -9 ------- Run | Yrd Mat Mat Sto Combat Hostiles Destroyed 20 | . 3 10 7 Guns 19 | . 3 9 7 Classes Destroyed 5 | . 1 3 1 Builder 1 | . . 1 . Watcher 1 | . . . 1 Swarmer 7 | . . 7 . Grunt 8 | . 3 2 3 Sentry 5 | . . 1 4 Best Kill Streak 5 | . 2 5 2 Combat Bots Only 5 | . 2 5 2 Max Kills in Single Turn 1 | . 1 1 1 Gunslinging . | . . . . Exploded . | . . . . Melee . | . . . . Uniques/NPCs Destroyed . | . . . . Combat | -11 -10 -9 -9 -------- Run | Yrd Mat Mat Sto Hostile Shots Fired 175 | . 20 72 83 Missed 38 | . 8 18 12 Hits 137 | . 12 54 71 Projectile 137 | . 12 54 71 Critical Strikes 5 | . . 1 4 Damage Taken 1639 | . 130 518 991 Core 422 | . 20 96 306 Absorbed by Shields . | . . . . Core Remaining (%) 96 | 100 92 . . Volleys Fired 98 | . 12 38 48 Largest 2 | . 2 2 2 Hottest 90 | . 90 80 90 Shots Fired 158 | . 24 67 67 Gun 158 | . 24 67 67 Cannon . | . . . . Launcher . | . . . . Special . | . . . . Kinetic . | . . . . Thermal 158 | . 24 67 67 Explosive . | . . . . Electromagnetic . | . . . . Robot Hit Streak 14 | . 5 14 10 Robot Miss Streak 5 | . 2 5 3 Penetration Max . | . . . . Secondary Targets . | . . . . Shots Hit Robots 104 | . 16 40 48 Core Hits 39 | . 6 15 18 Critical Kills . | . . . . Critical Parts Destroyed . | . . . . Critical Strikes 2 | . 1 . 1 Burn 2 | . 1 . 1 Melee Attacks . | . . . . Impact . | . . . . Slashing . | . . . . Piercing . | . . . . Sneak Attacks . | . . . . Combat Hostiles . | . . . . Follow-up Attacks . | . . . . Damage Inflicted 1217 | . 185 477 555 Guns 1201 | . 185 468 548 Cannons . | . . . . Explosions . | . . . . Melee . | . . . . Ramming 16 | . . 9 7 Kinetic . | . . . . Thermal 1201 | . 185 468 548 Explosive . | . . . . Electromagnetic . | . . . . Impact . | . . . . Slashing . | . . . . Piercing . | . . . . Highest Corruption 1 | . . 1 1 Average Corruption 1 | . . 1 1 Corruption Purged . | . . . . Corruption Blocked . | . . . . Effects 9 | . . . 9 Message Errors 2 | . . . 2 Matter Fused 3 | . . . 3 Data Loss (minor) 1 | . . . 1 Data Loss (major) 1 | . . . 1 Misfires 1 | . . . 1 Weapon Failures 1 | . . . 1 Overload Shots . | . . . . Overflow Damage . | . . . . Projectiles . | . . . . Explosions . | . . . . Melee . | . . . . Knockbacks . | . . . . Impact . | . . . . Kinetic . | . . . . Secondary . | . . . . Self-Inflicted Damage . | . . . . Shots . | . . . . Rammed 1 | . . 1 . Targets Rammed 5 | . . 3 2 Kicked 4 | . . 2 2 Crushed . | . . . . Highest Temperature 117 | . 60 117 114 Average Temperature 34 | . 21 35 37 Received Heat Transfer 594 | . 72 111 411 Siege Activations . | . . . . Martial Activations . | . . . . Shielding Activations . | . . . . Robots Disrupted . | . . . . Combat Hostiles . | . . . . Robots Corrupted . | . . . . Combat Hostiles . | . . . . Parts Fried . | . . . . Impact Corruptions . | . . . . Robots Melted 1 | . . 1 . Combat Hostiles 1 | . . 1 . Parts Melted 4 | . . 2 2 Heat Transferred 3110 | . 558 1086 1466 Parts Sabotaged . | . . . . Parts Stolen . | . . . . Parts Stripped . | . . . . Power Chain Reactions . | . . . . Alert | -11 -10 -9 -9 ------- Run | Yrd Mat Mat Sto Maximum Alert Level . | . . . . Low Security (%) 100 | 100 100 100 100 Level 1 . | . . . . Level 2 . | . . . . Level 3 . | . . . . Level 4 . | . . . . Level 5 . | . . . . High Security . | . . . . Max Security . | . . . . Peak Influence 110 | . 45 110 60 Initial 26 | . . 14 26 Average 22 | . 11 42 17 Influence Increases 527 | . 85 235 207 Destroy 0b10 Robot/C 400 | . 60 200 140 Destroy 0b10 Robot/NC 10 | . . 5 5 Destroy Leader 92 | . 10 30 52 Successful Hack 10 | . . . 10 Lose Combat Pursuer 15 | . 15 . . Influence Decreases 515 | . 50 208 257 Entered New Map 57 | . . 21 36 Time Decay 392 | . 50 147 195 Lost Part 60 | . . 40 20 Purge Threat 6 | . . . 6 Squads Dispatched 4 | . 1 . 3 Investigation 1 | . . . 1 Extermination . | . . . . Reinforcement 3 | . 1 . 2 Assault . | . . . . Garrison . | . . . . Intercept . | . . . . Searches Triggered . | . . . . Construction Impeded . | . . . . Haulers Reinforced . | . . . . Active Scanning Responses . | . . . . Cargo Convoy Interrupts . | . . . . Stealth | -11 -10 -9 -9 --------- Run | Yrd Mat Mat Sto Distress Signals 5 | . . 2 3 Communications Jammed . | . . . . Distress Signals . | . . . . Times Spotted 36 | . 7 17 12 Peak Tracking Total 7 | . 3 7 3 Tactical Retreats 1 | . 1 . . Traps | -11 -10 -9 -9 ------- Run | Yrd Mat Mat Sto Traps Triggered 3 | . . 2 1 Indirectly . | . . . . Trap Hack Attempts . | . . . . Triggered . | . . . . Disarmed . | . . . . Reprogrammed . | . . . . Reused . | . . . . Traps Extracted . | . . . . Installed . | . . . . Triggered . | . . . . Machines | -11 -10 -9 -9 ---------- Run | Yrd Mat Mat Sto Machines Disabled . | . . . . Max in Single Turn . | . . . . Machines Repaired . | . . . . Machines Dismantled . | . . . . Machines Sabotaged . | . . . . Overloaded Fab Kills . | . . . . Hacking | -11 -10 -9 -9 --------- Run | Yrd Mat Mat Sto Machines Accessed 4 | . 1 . 3 Terminals 3 | . 1 . 2 Fabricators . | . . . . Repair Stations . | . . . . Recycling Units 1 | . . . 1 Scanalyzers . | . . . . Garrison Access . | . . . . Total Hacks 7 | . 2 . 5 Successful 5 | . . . 5 Failed 2 | . 2 . . Catastrophic 1 | . 1 . . Database Lockouts . | . . . . Manual 7 | . 2 . 5 Terminals 6 | . 2 . 4 Fabricators . | . . . . Repair Stations . | . . . . Recycling Units 1 | . . . 1 Scanalyzers . | . . . . Garrison Access . | . . . . Terminal Hacks 3 | . . . 3 Record 1 | . . . 1 Open Door 1 | . . . 1 Unreport Threat 1 | . . . 1 Fabricator Hacks . | . . . . Repair Station Hacks . | . . . . Recycling Unit Hacks 1 | . . . 1 Recycle Component 1 | . . . 1 Scanalyzer . | . . . . Garrison Access Hacks . | . . . . Unauthorized Hacks 1 | . . . 1 Terminals 1 | . . . 1 Assimilate 1 | . . . 1 Fabricators . | . . . . Repair Stations . | . . . . Recycling Units . | . . . . Scanalyzers . | . . . . Garrison Access . | . . . . Data Cores Recovered . | . . . . Used . | . . . . Hacking Detections 2 | . 1 . 1 Full Trace Events 1 | . . . 1 Feedback Events . | . . . . Feedback Blocked . | . . . . Robot Schematics Acquired . | . . . . Robots Built . | . . . . Authchips . | . . . . Time . | . . . . Total Robot Build Rating . | . . . . Part Schematics Acquired . | . . . . Parts Built . | . . . . Authchips . | . . . . Time . | . . . . Total Part Build Rating . | . . . . Part Studies Acquired . | . . . . Parts Repaired . | . . . . Time . | . . . . Parts Recycled 1 | . . . 1 Recycled Matter . | . . . . Retrieved Matter . | . . . . Retrieved Components . | . . . . Parts Scanalyzed . | . . . . Part Schematics Acquired . | . . . . Parts Damaged . | . . . . Bothacking | -11 -10 -9 -9 ------------ Run | Yrd Mat Mat Sto Used RIF Installer . | . . . . Robots Hacked . | . . . . Non-combat . | . . . . Combat . | . . . . Robot Hacks Applied . | . . . . Relay Couplers Released . | . . . . Fabnet Peak Effective % . | . . . . Robots Rewired . | . . . . Allies Hacked . | . . . . Hacks Repelled . | . . . . Allies | -11 -10 -9 -9 -------- Run | Yrd Mat Mat Sto Total Allies . | . . . . Largest Group . | . . . . Highest-Rated Group . | . . . . Highest-Rated Ally . | . . . . Total Orders . | . . . . Ally Attacks . | . . . . Total Damage . | . . . . Kills . | . . . . Allies Corrupted . | . . . . Allies Melted . | . . . . Intel | -11 -10 -9 -9 ------- Run | Yrd Mat Mat Sto Active Infowar (turns) . | . . . . Robot Analysis Total . | . . . . Derelict Logs Recovered . | . . . . Drone Launches 4 | . . . 4 Drone Recoveries 2 | . . . 2 Exploration | -11 -10 -9 -9 ------------- Run | Yrd Mat Mat Sto Turns Passed 1344 | 81 238 405 620 Spaces Moved 652 | 54 125 186 287 Core 27 | 19 . 2 6 Treads 228 | 35 125 58 10 Legs 397 | . . 126 271 Wheels . | . . . . Hover . | . . . . Flight . | . . . . Fastest Speed 50 | 50 160 120 120 Average Speed 143 | 121 160 132 146 Slowest Speed 200 | 160 160 160 200 Overloaded Moves . | . . . . Propulsion Burnouts . | . . . . Robots Hopped . | . . . . Potential Cave-ins . | . . . . Cave-ins Triggered . | . . . . Exploration Rate (%) 24 | 3 24 20 49 Regions Visited 3 Branch Regions 1 Pre-discovered Areas . | . . . . Known Exits Taken 1 | . . 1 . Unknown Exits Taken 2 | 1 1 . . Scrap Searched . | . . . . Spaces Dug . | . . . . Terrain Destroyed . | . . . . Melee . | . . . . Projectile . | . . . . AOE . | . . . . Terrain Rammed . | . . . . Walls Destroyed . | . . . . Machines Disabled . | . . . . Actions | -11 -10 -9 -9 --------- Run | Yrd Mat Mat Sto Total 904 | 70 139 277 418 Wait 92 | . . 36 56 Move 650 | 53 124 186 287 Hop . | . . . . Pick Up 26 | 10 2 5 9 Fast Attach . | . . . . Attach 22 | 6 1 8 7 Detach 2 | . . 2 . Swap 2 | . . . 2 Drop 3 | 1 . . 2 Fire 98 | . 12 38 48 Melee . | . . . . Ram . | . . . . Kick 4 | . . 2 2 Crush . | . . . . Escape Stasis 5 | . . . 5 Rewire . | . . . . Trap . | . . . . Miscellaneous . | . . . . Route ------- -11/Scrapyard -10/Materials -9/Materials -9/Storage History --------- Turn | Location | Event 31 | -11/Scrapyard | Discovered new exit (range 16) 82 | -11/Scrapyard | Entered Materials 227 | -10/Materials | Discovered new exit (range 5) 318 | -10/Materials | Build established: Mutant 320 | -10/Materials | Entered another Materials area 320 | -9/Materials | Evolved 2 slots: Propulsion x1, Utility x1 636 | -9/Materials | Discovered new exit (range 15) 690 | -9/Materials | Lost 4 parts (1p1n2w) 691 | -9/Materials | Identified exit to Storage 725 | -9/Materials | Entered Storage 864 | -9/Storage | Core integrity fell below 50% 1201 | -9/Storage | Core integrity fell below 20% 1345 | -9/Storage | Destroyed by G-34 Mercenary with Small Laser Last Messages --------------- 01247_ K-01 Serf cleans the Component Storage. 01260_ K-01 Serf collects debris. 01265_ K-01 Serf cleans the Component Storage. 01268_ R-06 Scavenger collects Beam Rifle. 01271_ R-06 Scavenger collects Imp. Ion Engine. 01271_ K-01 Serf cleans the Component Storage. 01278_ R-06 Scavenger collects Hvy. Assault Rifle. 01278_ K-01 Serf cleans the Component Storage. 01285_ Acquired Grenade Launcher. 01308_ Drone retrieved by Drone Bay (repair cost: 2). 01309_ Drone retrieved by Drone Bay (no repairs). 01314_ W-16 Scout sends out distress signal. 01318_ W-16 Scout destroyed. 01325_ Imp. Ion Engine destroyed. 01330_ K-01 Serf cleans the Component Storage. 01339_ Sml. Laser destroyed. 01340_ Drone released from Drone Bay. 01341_ Drone Bay destroyed. 01342_ >> Lost connection to Drone. 01344_ G-34 Mercenary destroyed. Map ----- +----------------------------------------------------+ | ???????????????????????????#%=** | | ???????????????????????????##[* * | | ????????????????????????????# ** | | ????????????????????????????# ** | | ??????????????????????????######## | | ????????????????????????? | | ??????????????????????????????### | | ????????????????????????????????#^ | | ????????????????????????????????# | | ??#?????????????????????????????# | | ??# ????????????????????????????# | | ??? ???#+##+##?????????????????%+ | | ??? ???# ????????????????"[# | | ???# ??# #??????????????? ## | | ???# ??# #?????????????? ??# | | ???# ### #????????#+#??###???# | | ???# #????????# #????????# | | ???# ########## ##???##### | | ???# Y #??## | | ???# #??"" | | ???# #??R | | ???# n #??"" | | ???# % #???" | | ???# n ########## #???# | | ???# g= # # #???# | | ???#ua=%[@/ """"" ?# #???# | | ???# ###### """"" # ######+## | | ???#??????# """"" # | | ??????????#^ + | | ??????????# """"" # | | ??????????# """"" ###+#+######### | | ??????????# """"" # ## | | ??????????# ?# ## | | ??????????#######??# [ ## | | ???????????????????# ## | | ???????????????????#% ## | | ???????????????????# ! ! ## | | ???????????????????# #T | | ???????????????????# ## | | ???????????????????# ## | | ???????????????????########### | | ?????????????????????????????# [ | | ?????????????????????????????####% | | ????????????????????????????????## | | ?????????????????????????????????? | | ?????????????????????????????????? | | ?????????????????????????????????? | | ?????????????????????????????????? | | ?????????????????????????????????? | | ?????????????????????????????????? | +----------------------------------------------------+ Best States ------------- Heat Dissipation 38 Energy Generation 12 Energy Capacity 265 Matter Stores 300 Matter Capacity 300 Sight Range 16 Terrain Scan Density 10 Evasion (%) 55 Recoil Reduction 2 Item Schematics ----------------- None Robot Schematics ------------------ None Fabricated ------------ Nothing Repaired ---------- Nothing Studied --------- None Alien Tech Used ----------------- None Achievements -------------- Everything Is Under Control Challenges ------------ None Game ------ Seed RingCompanionMount Manual? 0 Play Time 00:18:27 Cumulative 11.1 hours Start 2026.02.14 @ 15:59:31 End 2026.02.15 @ 13:44:30 Sessions 3 Manual Loads 0 Difficulty Rogue Special Mode None Game No. 35 Rogue 29 Adventurer 6 Explorer 0 Win Type - Total 0 Types 0/0/0/0/0/0/0/0/0/0 Lore% 9 Gallery% 15 Achievement% 12 Wizard Run 0 Options --------- Layout 0 ASCII 0 Keyboard 1 Movement Numpad Keybinds 0 Fullscreen 1 Font 24/Swanston Map View 76x50 Zoom Use 2% Tactical HUD 1 Map Filters NONE Filters NONE Steam 1 RUN: ec6bce69-10f0-485f-a3b5-a95f94f3540d